bitfinex-derivatives/quotes_ETHF0:USTF0_20250224
["timestamp","ask_amount","ask_price","bid_price","bid_amount"]
[1740367615312,0.54660757,2745.2,2745.1,23.49897296]
[1740367615606,0.54660757,2745.2,2744.7,4.584]
[1740367615801,0.54660757,2745.2,2745.1,24.22745296]
[1740367616107,0.54660757,2745.2,2745.1,7.09844322]
[1740367616309,0.54660757,2745.2,2745.1,34.08713952]
[1740367616504,0.54660757,2745.2,2744.0,3.2078]
[1740367616704,0.72848,2745.1,2744.7,7.09844322]
[1740367616905,3.2078,2744.9,2744.0,7.7768]
[1740367617105,3.2078,2744.9,2744.5,17.12916974]
[1740367617300,3.2078,2745.2,2744.6,0.72861]
[1740367617608,3.2078,2745.2,2744.9,16.40052974]
[1740367618104,3.2078,2745.2,2744.9,41.8084609]
[1740367618305,3.2078,2745.2,2745.1,16.40052974]
[1740367618506,3.2078,2745.2,2745.1,0.00164797]
[1740367618705,3.2078,2745.2,2744.8,0.00546757]
[1740367619005,3.2078,2745.2,2744.8,25.41339873]
[1740367619211,3.93627,2745.2,2744.8,25.41339873]
[1740367619408,3.2078,2745.2,2744.8,25.41339873]
[1740367619711,3.2078,2744.9,2744.8,0.00546757]
[1740367620208,3.93633,2744.9,2744.8,0.00546757]
[1740367620400,0.72863,2744.6,2744.4,30.68375155]
[1740367620601,3.2078,2744.5,2744.4,30.68375155]
[1740367620806,3.2078,2744.5,2743.4,0.5378]
[1740367621008,3.2078,2743.5,2742.1,6.33117]
[1740367621208,0.72897,2743.3,2743.1,0.00164797]
[1740367621409,3.2078,2743.7,2743.3,0.00164797]
[1740367621599,3.2078,2743.4,2743.1,0.00164797]
[1740367621908,0.729,2743.2,2742.9,0.00546757]
[1740367622103,3.93684,2743.0,2742.9,0.00546757]
[1740367622504,3.2078,2743.0,2742.9,0.00546757]
[1740367622703,3.56193045,2743.0,2742.9,0.00546757]
[1740367623712,4.35959337,2743.0,2742.9,0.00546757]
[1740367623912,1.15179337,2743.0,2742.9,0.00711554]
[1740367624102,1.15179337,2743.0,2742.9,25.4150467]
[1740367624306,1.15179337,2743.0,2742.9,25.41339873]
[1740367624507,0.79766292,2743.0,2742.9,0.73617554]
[1740367624714,0.72869,2744.3,2743.0,1.8226]
[1740367624910,0.72889,2743.6,2743.5,0.00164797]
[1740367625100,3.2078,2744.1,2743.2,0.00164797]
[1740367625306,0.72885,2743.8,2743.2,0.73061797]
[1740367625502,5.85672966,2744.4,2743.5,0.00164797]
[1740367625706,5.85672966,2744.4,2743.8,0.72882]
[1740367625707,0.72869,2744.3,2743.8,0.72882]
[1740367625902,0.00546757,2744.2,2744.0,0.00164797]
[1740367626107,0.00546757,2744.2,2744.0,0.73040797]
[1740367626305,0.00546757,2744.2,2743.7,0.65631817]
[1740367626810,2.64892966,2744.4,2743.7,0.65631817]
[1740367627213,2.64892966,2744.4,2744.0,0.72876]
[1740367627512,2.64892966,2744.4,2744.3,0.72869]
[1740367627513,1.77842966,2744.4,2744.3,0.72869]
[1740367628312,0.00546757,2744.6,2744.5,0.72864]
[1740367628502,0.00546757,2744.6,2744.3,3.2078]
[1740367628707,0.00546757,2744.6,2744.5,0.72864]
[1740367629211,3.2078,2744.7,2744.1,3.2078]
[1740367629613,0.72878,2744.0,2743.3,8.62168239]
[1740367629911,0.54596648,2743.6,2743.3,8.62168239]
[1740367630117,0.54596648,2743.6,2743.4,0.72891]
[1740367630314,0.54596648,2743.6,2743.3,8.62168239]
[1740367630505,0.54596648,2743.5,2743.3,8.62168239]
[1740367630714,3.2078,2743.6,2743.3,16.89111672]
[1740367630910,0.72893,2743.4,2743.3,16.89111672]
[1740367631117,3.2078,2743.6,2743.2,0.00546757]
[1740367631118,3.93669,2743.6,2743.2,0.00546757]
[1740367631419,3.2078,2743.3,2743.0,0.72902]
[1740367631614,3.2078,2743.3,2742.7,3.2078]
[1740367631914,3.2078,2742.8,2742.3,8.99598801]
[1740367632217,3.2078,2742.7,2742.3,8.99598801]
[1740367632408,0.00546757,2742.8,2742.3,9.00145558]
[1740367632614,0.729,2743.2,2742.4,9.09407448]
[1740367632811,3.2078,2742.8,2742.3,9.60525558]
[1740367633507,3.2078,2742.8,2742.0,3.2078]
[1740367633508,3.2078,2742.5,2742.4,20.213]
[1740367633711,3.2078,2742.5,2742.4,20.9422]
[1740367633918,0.72905,2743.0,2742.4,23.4208]
[1740367633919,3.2078,2743.0,2742.4,23.4208]
[1740367634110,3.2078,2743.5,2742.7,3.2078]
[1740367634310,3.2078,2743.5,2742.7,3.9369]
[1740367634311,0.72897,2743.3,2742.7,3.9369]
[1740367634511,3.2078,2743.5,2742.7,13.68331672]
[1740367634719,3.2078,2743.2,2742.7,10.48098429]
[1740367634919,0.72909,2742.8,2742.7,10.48098429]
[1740367635322,1.25585565,2742.8,2742.7,10.48098429]
[1740367635911,0.52676565,2742.8,2742.7,0.72912]
[1740367636712,0.85641528,2742.8,2742.7,0.72912]
[1740367637021,0.00546757,2743.3,2742.7,6.0]
[1740367637213,0.54866882,2743.3,2743.1,3.2078]
[1740367637409,3.9733945,2744.4,2743.1,3.2078]
[1740367637616,3.9733945,2744.4,2743.8,3.2078]
[1740367637913,3.2078,2744.1,2743.9,20.215]
[1740367638113,0.72896,2743.3,2743.0,25.04837756]
[1740367638423,0.72901,2743.1,2743.0,20.215]
[1740367638621,3.93681,2743.1,2743.0,20.215]
[1740367639221,0.72904,2743.0,2742.9,0.00546757]
[1740367639416,0.72916,2742.6,2742.1,20.213]
[1740367639618,3.2078,2742.8,2742.1,20.213]
[1740367639921,0.72916,2742.6,2742.2,0.72925]
[1740367640314,3.2078,2742.8,2742.1,20.213]
[1740367640511,3.2078,2742.8,2742.3,3.2078]
[1740367640721,3.2078,2742.8,2742.1,0.00546757]
[1740367641023,3.2078,2742.2,2740.9,3.2078]
[1740367641322,3.2078,2742.0,2740.9,3.2078]
[1740367641621,3.2078,2741.5,2740.9,3.2078]
[1740367641816,0.72957,2741.0,2740.5,20.22688]
[1740367642012,3.2078,2740.9,2740.5,0.01388]
[1740367642219,3.2078,2740.6,2739.6,0.0201847]
[1740367642417,0.72991,2739.7,2739.6,0.0201847]
[1740367642616,4.447,2740.5,2739.6,0.0201847]
[1740367642918,3.2078,2740.2,2739.6,0.0201847]
[1740367643320,0.00546757,2740.2,2739.6,0.7501047]
[1740367643528,0.00546757,2740.2,2739.6,0.0201847]
[1740367643719,3.21326757,2740.2,2739.6,0.0201847]
[1740367644211,3.2078,2739.8,2739.6,0.0201847]
[1740367644414,3.2078,2740.1,2739.6,0.0201847]
[1740367645025,3.93761,2740.1,2739.6,0.0201847]
[1740367645318,3.2078,2740.1,2739.6,0.0201847]
[1740367645720,0.00546757,2740.2,2739.6,0.0201847]
[1740367645721,0.00546757,2740.2,2739.8,3.2078]
[1740367646225,3.2078,2740.1,2739.6,0.0201847]
[1740367646418,0.72991,2739.7,2739.6,0.0201847]
[1740367646622,3.2078,2740.0,2739.6,0.0201847]
[1740367647223,0.00546757,2740.2,2739.7,3.2078]
[1740367647422,3.2078,2741.3,2740.1,3.2078]
[1740367647716,3.2078,2740.9,2740.2,3.2078]
[1740367647928,3.2078,2740.9,2740.1,4.432]
[1740367648224,3.2078,2740.9,2740.3,40.8]
[1740367648425,3.2078,2740.5,2740.0,20.224]
[1740367648725,0.72966,2740.7,2740.3,0.00546757]
[1740367649023,3.2078,2740.5,2740.3,0.00546757]
[1740367649226,0.72973,2740.4,2740.3,7.57e-06]
[1740367649631,6.72973,2740.4,2740.3,7.57e-06]
[1740367650021,3.2078,2739.7,2737.9,3.2078]
[1740367650325,3.2078,2738.0,2736.3,3.2078]
[1740367650624,0.73047,2737.7,2737.5,2.469]
[1740367650820,3.2078,2738.2,2737.4,3.2078]
[1740367650821,0.73033,2738.2,2737.4,3.2078]
[1740367651032,0.73023,2738.6,2738.1,2.469]
[1740367651322,0.00547835,2738.1,2738.0,3.2078]
[1740367651824,3.2078,2739.1,2738.0,6.0]
[1740367652023,3.2078,2739.8,2739.4,2.46352165]
[1740367652222,3.2078,2740.4,2739.7,2.46352165]
[1740367652527,3.93769,2739.8,2739.7,2.46352165]
[1740367652726,3.93769,2739.8,2738.2,5.76408459]
[1740367652727,3.2078,2739.8,2738.7,3.2078]
[1740367652927,3.2078,2739.3,2738.4,3.2078]
[1740367653220,3.93787,2739.1,2739.0,0.00547835]
[1740367653415,3.2078,2739.1,2737.7,0.3656]
[1740367653622,3.2078,2739.3,2737.7,3.5734]
[1740367653823,3.2078,2739.0,2737.7,3.5734]
[1740367654022,3.2078,2738.7,2737.7,0.3656]
[1740367654221,3.2078,2738.4,2738.0,20.0]
[1740367654923,3.93792,2739.0,2738.3,0.73027]
[1740367655223,3.2078,2739.0,2738.2,3.2078]
[1740367655527,3.2078,2738.6,2738.0,20.0]
[1740367655722,3.2078,2738.9,2738.0,20.0]
[1740367656130,3.2078,2739.3,2739.0,0.7301]
[1740367656325,3.2078,2739.3,2738.5,0.73022]
[1740367656520,3.2078,2738.9,2738.0,20.0]
[1740367656717,3.2078,2739.2,2738.0,23.2078]
[1740367656920,3.2078,2738.6,2738.0,20.0]
[1740367657322,3.2078,2739.1,2738.0,20.0]
[1740367657625,3.2078,2738.8,2738.0,20.0]
[1740367658225,3.93813,2738.2,2738.0,20.0]
[1740367658437,0.73034,2738.1,2738.0,20.0]
[1740367658726,6.73034,2738.1,2738.0,9.76685679]
[1740367659029,6.73034,2738.1,2738.0,3.98985679]
[1740367659221,0.73034,2738.1,2738.0,3.06984679]
[1740367659425,3.2078,2738.2,2738.0,2.14984679]
[1740367659729,0.73034,2738.1,2738.0,1.36002679]
[1740367659924,6.0,2738.1,2738.0,11.52555]
[1740367660119,12.019,2738.1,2736.2,23.4498]
[1740367660327,3.2078,2737.1,2736.8,3.652]
[1740367660627,0.00547835,2737.2,2736.5,3.2078]
[1740367660832,0.00547835,2737.2,2736.6,4.538]
[1740367661131,0.00547835,2737.2,2737.1,3.652]
[1740367661725,0.00547835,2737.2,2737.1,4.38261]
[1740367662131,3.2078,2737.9,2737.1,6.8598]
[1740367662429,3.2078,2737.6,2736.7,3.2078]
[1740367662936,3.2078,2737.3,2736.5,7.48397335]
[1740367663226,3.2078,2737.3,2736.6,0.00547835]
[1740367663433,0.00547835,2737.2,2736.7,0.7307]
[1740367663631,0.00547835,2737.2,2736.6,0.00547835]
[1740367663831,0.00547835,2737.2,2736.9,0.73065]
[1740367664038,0.00547835,2737.2,2736.6,0.00547835]
[1740367664231,0.73071,2736.7,2736.6,0.00547835]
[1740367664438,3.2078,2736.7,2736.2,12.80413038]
[1740367664733,3.2078,2736.4,2736.2,12.80413038]
[1740367665234,3.2078,2736.4,2735.3,0.55]
[1740367665235,7.6928,2736.4,2735.3,0.55]
[1740367665532,3.2078,2735.7,2734.8,3.2078]
[1740367665732,3.2078,2736.4,2735.5,3.2078]
[1740367666041,4.484,2736.9,2735.1,24.735]
[1740367666042,3.2078,2736.1,2735.4,4.71163099]
[1740367666232,0.73113,2735.2,2734.7,0.73125]
[1740367666432,0.73113,2735.2,2734.6,3.2078]
[1740367666433,3.2078,2735.2,2734.4,1.82833]
[1740367666734,0.00547835,2736.2,2735.3,1.82767]
[1740367666933,0.00547835,2736.2,2735.3,1.82773]
[1740367667134,0.00547835,2736.2,2735.4,5.5018]
[1740367667337,8.35e-06,2736.2,2736.1,0.73087]
[1740367667526,3.2078,2737.3,2736.1,24.84]
[1740367667727,2.39991,2737.3,2737.2,0.73058]
[1740367667932,4.07218439,2737.5,2737.4,0.73053]
[1740367668135,3.31801439,2737.5,2737.4,0.73053]
[1740367668435,5.42957919,2737.7,2737.4,29.4638]
[1740367668627,5.42957919,2737.7,2737.6,0.73047]
[1740367668831,5.43505754,2737.7,2737.6,0.73047]
[1740367669338,11.43505754,2737.7,2737.2,0.00547835]
[1740367669542,3.2078,2737.3,2736.7,20.256]
[1740367669837,3.2078,2737.3,2737.2,0.73058]
[1740367670134,3.2078,2737.3,2736.7,4.14513358]
[1740367670337,3.2078,2737.3,2737.2,0.73058]
[1740367670536,5.42957919,2737.4,2736.9,3.2078]
[1740367671133,0.73061,2737.1,2736.7,4.14513358]
[1740367671336,3.2078,2736.8,2736.7,4.14513358]
[1740367671635,3.2078,2736.8,2735.8,20.7815]
[1740367671840,3.2078,2736.2,2735.3,3.2078]
[1740367672240,1.1193,2737.5,2735.3,3.2078]
[1740367672241,3.2078,2736.6,2735.3,3.2078]
[1740367672437,0.00547835,2736.0,2735.6,3.2078]
[1740367672739,3.2078,2736.7,2735.9,3.2078]
[1740367673037,1.1193,2737.5,2735.2,20.257]
[1740367673038,3.2078,2737.0,2736.0,4.576]
[1740367673237,3.2078,2736.7,2736.0,4.576]
[1740367673543,3.2078,2737.3,2736.0,4.576]
[1740367673735,0.00547835,2736.6,2736.1,0.00547835]
[1740367673938,0.00547835,2736.6,2736.5,0.73077]
[1740367674429,3.2078,2737.7,2736.5,6.0]
[1740367674636,3.2078,2737.7,2736.7,3.2078]
[1740367674934,3.93835,2737.4,2736.8,5.28867]
[1740367675239,3.2078,2737.4,2736.7,3.2078]
[1740367675428,3.93834,2737.4,2736.8,0.73067]
[1740367675628,0.00547835,2737.3,2736.7,7.7498]
[1740367675835,0.00547835,2737.3,2737.2,0.73058]
[1740367676637,0.00547835,2737.3,2737.2,6.73058]
[1740367677735,0.73031,2738.3,2737.2,9.2078]
[1740367677937,3.2078,2738.4,2737.2,9.2078]
[1740367677938,3.2078,2738.4,2737.3,1.82638]
[1740367678243,3.2078,2738.0,2737.4,4.506]
[1740367678442,3.2078,2738.0,2737.7,0.73044]
[1740367678937,3.2078,2738.0,2737.9,0.73039]
[1740367680040,0.00547835,2738.1,2738.0,0.73037]
[1740367680342,3.2078,2738.6,2738.5,0.73023]
[1740367680545,6.78697399,2739.3,2738.3,3.2078]
[1740367680734,6.78697399,2739.3,2738.1,4.462]
[1740367680933,3.2078,2739.1,2738.1,9.11987522]
[1740367681135,6.78697399,2739.3,2738.6,5.03331]
[1740367681341,6.78697399,2739.3,2739.1,0.73007]
[1740367681542,5.43505754,2739.2,2739.1,0.73007]
[1740367681737,5.43505754,2739.2,2739.1,6.73007]
[1740367681933,5.43505754,2739.2,2738.8,0.73015]
[1740367682132,0.00547835,2739.2,2739.1,0.73007]
[1740367682537,0.00547835,2739.2,2738.9,0.73012]
[1740367682738,3.2078,2739.1,2738.4,3.68426]
[1740367683041,3.2078,2738.8,2738.0,3.2078]
[1740367683244,3.2078,2738.8,2738.7,0.73018]
[1740367683542,0.00547835,2739.2,2738.5,7.6408]
[1740367683741,0.73009,2739.1,2738.6,0.7302]
[1740367684044,3.2078,2739.1,2738.7,0.73018]
[1740367684242,0.00547835,2739.2,2738.5,4.433]
[1740367684442,3.2078,2739.1,2738.5,4.433]
[1740367684645,0.00547835,2739.2,2739.1,0.73007]
[1740367685046,8.35e-06,2739.2,2739.1,11.14107]
[1740367685344,6.04977399,2740.2,2739.1,14.29986768]
[1740367685548,6.04977399,2740.2,2740.1,0.72981]
[1740367685842,6.04977399,2740.2,2740.1,5.13581]
[1740367686049,1.13293263,2740.2,2740.1,31.38981]
[1740367686340,8.14436878,2740.8,2740.7,0.72965]
[1740367686547,8.14436878,2740.8,2740.7,5.12965]
[1740367686548,7.40278878,2740.8,2740.7,5.12965]
[1740367686750,4.72287878,2740.8,2740.7,11.12965]
[1740367687044,3.7068,2740.8,2738.3,3.2078]
[1740367687243,3.2078,2738.6,2737.0,3.2078]
[1740367687544,7.30543,2739.9,2736.4,3.2078]
[1740367687545,3.2078,2737.3,2736.4,3.2078]
[1740367687841,3.2078,2737.0,2735.7,3.2078]
[1740367688046,3.2078,2737.1,2736.3,3.2078]
[1740367688249,0.00547835,2736.6,2736.4,25.208]
[1740367688442,0.00547835,2736.6,2736.4,24.92301265]
[1740367688648,0.00547835,2736.6,2736.4,20.248]
[1740367689036,6.00547835,2736.6,2735.0,20.248]
[1740367689345,3.2078,2735.2,2734.4,3.2078]
[1740367689540,3.2078,2734.9,2734.5,41.5313]
[1740367689841,7.31237,2736.5,2734.5,41.5313]
[1740367689842,3.2078,2735.4,2735.3,0.73109]
[1740367690046,3.2078,2736.1,2735.4,0.73104]
[1740367690343,3.2078,2736.1,2735.5,25.09467479]
[1740367690547,3.2078,2736.1,2735.7,0.73096]
[1740367690841,3.21327835,2736.1,2736.0,0.7309]
[1740367691248,3.21327835,2736.1,2736.0,6.7309]
[1740367691452,0.00547835,2736.1,2736.0,19.53873535]
[1740367691946,3.2078,2736.9,2736.0,18.80783535]
[1740367692137,3.2078,2736.9,2736.6,0.73074]
[1740367692343,3.2078,2736.9,2736.8,0.73069]
[1740367692546,3.2078,2737.4,2736.8,0.73068]
[1740367692749,3.2078,2737.4,2736.8,25.165]
[1740367692948,3.2078,2737.9,2737.0,3.2078]
[1740367693145,0.00547835,2737.4,2737.3,3.93835]
[1740367693347,3.2078,2737.9,2737.8,0.73042]
[1740367693648,3.2078,2738.7,2737.8,4.898]
[1740367693850,3.2078,2738.7,2737.8,8.1058]
[1740367694050,3.2078,2738.7,2738.3,0.73028]
[1740367694239,3.2078,2738.4,2737.8,4.898]
[1740367694545,3.2078,2738.3,2737.4,8.0968]
[1740367694847,3.2078,2738.3,2737.8,0.00547835]
[1740367695044,3.2078,2738.3,2738.0,0.73036]
[1740367695246,3.2078,2738.3,2738.1,20.255]
[1740367695749,0.00547835,2738.4,2738.1,20.255]
[1740367696143,0.00547835,2738.4,2738.3,0.73029]
[1740367696344,0.00547835,2738.4,2738.1,20.255]
[1740367696541,3.2078,2738.3,2737.0,20.253]
[1740367696746,3.2078,2738.3,2735.7,1.76505957]
[1740367696747,0.73066,2737.0,2736.2,0.73084]
[1740367697046,3.2078,2736.4,2735.7,25.14]
[1740367697355,3.2078,2736.1,2735.7,25.133]
[1740367697551,3.2078,2736.1,2736.0,0.7309]
[1740367697947,8.35e-06,2736.2,2736.1,0.73087]
[1740367698348,8.35e-06,2736.2,2736.1,4.65453324]
[1740367698744,5.98905165,2736.2,2736.1,2.91033324]
[1740367698950,5.98905165,2736.2,2734.8,0.73121]
[1740367699254,5.98905165,2736.2,2734.7,20.256]
[1740367699255,3.2078,2734.9,2734.7,20.256]
[1740367699451,3.93893,2735.2,2734.7,20.256]
[1740367699657,3.2078,2734.9,2734.7,20.256]
[1740367700452,9.1968433,2734.9,2734.7,20.256]
[1740367700657,9.1968433,2734.9,2734.5,0.00547835]
[1740367701150,3.2078,2734.9,2734.5,0.00547835]
[1740367701454,3.93908,2734.6,2734.5,0.00547835]
[1740367701850,9.9281233,2734.6,2734.5,0.00547835]
[1740367702050,9.9281233,2734.6,2733.8,20.98747]
[1740367702251,3.2078,2734.0,2733.8,20.256]
[1740367702549,3.2078,2734.0,2733.0,3.2078]
[1740367702759,3.2078,2734.3,2733.9,0.73144]
[1740367703054,3.2078,2734.3,2734.2,0.73138]
[1740367703355,0.00547835,2734.8,2734.1,20.262]
[1740367703564,0.00547835,2734.8,2734.4,3.93913]
[1740367703755,0.00547835,2734.8,2734.1,23.4698]
[1740367704055,0.00547835,2734.8,2734.5,0.73128]
[1740367704458,0.00547835,2734.8,2734.5,0.73129]
[1740367704755,0.00547835,2734.8,2734.7,0.73125]
[1740367705053,0.00547835,2734.8,2734.7,3.2078]
[1740367705260,0.00547835,2734.8,2734.7,0.73125]
[1740367705450,0.00547835,2734.8,2734.7,44.73905]
[1740367705651,0.00547835,2734.8,2734.7,41.53125]
[1740367705845,0.00547835,2734.8,2734.7,44.73905]
[1740367706555,0.00547835,2734.8,2734.7,50.73905]
[1740367706753,0.00547835,2734.8,2734.7,47.53125]
[1740367706955,8.22924459,2735.2,2735.1,0.73114]
[1740367707156,3.2078,2736.2,2735.1,9.2078]
[1740367707454,3.2078,2736.2,2736.1,0.73087]
[1740367707658,3.2078,2736.2,2736.1,25.80387]
[1740367707858,8.22924459,2736.3,2736.2,0.73085]
[1740367708058,8.22924459,2736.3,2736.2,3.93865]
[1740367708259,8.22924459,2736.3,2736.2,9.93865]
[1740367708457,8.22924459,2736.3,2736.2,6.73085]
[1740367708656,8.22924459,2736.3,2736.2,9.93865]
[1740367708862,4.20245464,2736.3,2736.2,14.58254682]
[1740367709359,4.20245464,2736.3,2736.2,14.72165]
[1740367709558,4.20245464,2736.3,2736.1,61.066]
[1740367709762,0.73087,2736.1,2736.0,0.00547835]
[1740367709957,3.2078,2736.1,2735.2,25.047]
[1740367710164,9.1968433,2736.1,2735.2,25.047]
[1740367710459,0.574,2736.4,2735.4,3.2078]
[1740367710662,3.21327835,2736.5,2736.3,0.73082]
[1740367710965,0.00547835,2736.5,2736.4,0.73079]
[1740367711352,0.00547835,2736.5,2736.4,20.99779]
[1740367712262,3.2078,2737.4,2736.4,26.267]
[1740367712565,9.1968433,2737.4,2736.6,3.2078]
[1740367712760,0.574,2737.5,2736.7,4.757]
[1740367712962,5.9890433,2737.5,2737.0,3.2078]
[1740367713159,10.06024963,2737.7,2737.0,3.2078]
[1740367713464,10.06024963,2737.7,2737.6,0.73047]
[1740367713665,0.00547835,2737.6,2737.5,4.741]
[1740367713866,0.00547835,2737.6,2737.5,8.6793]
[1740367714065,0.00547835,2737.6,2737.5,11.4715]
[1740367714560,6.85244963,2737.7,2737.5,11.4715]
[1740367714561,6.06204798,2737.7,2737.6,0.73047]
[1740367714761,8.33543358,2738.2,2738.1,0.73034]
[1740367715064,6.57441528,2738.2,2738.1,8.68314]
[1740367715259,6.57441528,2738.2,2737.7,3.2078]
[1740367715456,6.57441528,2738.2,2737.6,26.71619926]
[1740367715457,6.57441528,2738.2,2737.8,4.739]
[1740367715657,6.57989363,2738.2,2738.1,0.73034]
[1740367716063,0.00547835,2738.2,2738.1,0.73034]
[1740367716266,0.00547835,2738.2,2738.1,11.52752395]
[1740367716462,8.35e-06,2738.2,2738.1,11.52752395]
[1740367716768,5.48556792,2738.9,2738.8,0.73015]
[1740367716966,5.48556792,2738.9,2738.8,28.93295]
[1740367717161,3.2078,2739.9,2739.4,0.72997]
[1740367717472,3.2078,2739.9,2739.7,0.72989]
[1740367717766,3.2078,2740.6,2739.8,4.69673678]
[1740367717965,3.2078,2740.6,2740.1,3.2078]
[1740367718164,1.0909,2740.9,2740.2,4.719]
[1740367718370,4.72,2741.5,2740.4,0.72973]
[1740367718371,0.00351996,2740.5,2740.4,0.72973]
[1740367718870,3.2078,2741.3,2740.4,53.26179635]
[1740367719069,11.03190139,2741.6,2741.2,3.2078]
[1740367719262,11.03190139,2741.6,2741.3,4.721]
[1740367719466,11.03190139,2741.6,2741.4,20.259]
[1740367719770,14.23970139,2741.6,2741.4,20.259]
[1740367719971,17.02094469,2741.6,2741.4,20.259]
[1740367720165,3.93724,2741.5,2741.4,20.259]
[1740367720366,9.1968433,2741.5,2741.4,20.259]
[1740367721869,3.2078,2741.5,2741.4,20.259]
[1740367722069,3.2078,2741.9,2741.4,20.259]
[1740367722372,9.1968433,2741.9,2741.4,20.259]
[1740367722571,9.1968433,2741.9,2741.5,0.72943]
[1740367722772,1.0909,2742.1,2741.4,20.259]
[1740367722975,5.9890433,2742.1,2741.5,3.2078]
[1740367723174,3.2078,2742.3,2742.2,0.72925]
[1740367723471,3.2078,2742.3,2742.1,4.671]
[1740367723680,3.2078,2742.3,2742.2,5.39525]
[1740367724276,3.2078,2743.1,2742.7,0.72911]
[1740367724463,3.2078,2742.8,2742.7,20.243]
[1740367725168,3.2078,2743.4,2742.7,24.884]
[1740367725369,3.2078,2743.1,2742.7,25.61309]
[1740367725676,14.23970139,2743.8,2743.7,0.72885]
[1740367725874,11.03190139,2743.8,2743.7,8.58365]
[1740367726079,11.03190139,2743.8,2743.7,12.5098811]
[1740367726273,11.03190139,2743.8,2743.7,10.0389311]
[1740367726466,3.2078,2744.4,2743.7,15.3100811]
[1740367726776,3.2078,2744.4,2744.3,0.72869]
[1740367727174,3.7435,2745.1,2744.2,20.235]
[1740367727471,3.2078,2744.5,2744.3,4.69021439]
[1740367727872,3.2078,2744.5,2744.4,0.72866]
[1740367728067,3.2078,2745.0,2744.3,7.98642498]
[1740367728267,3.2078,2745.0,2744.4,4.77862498]
[1740367728472,9.1968433,2745.0,2744.3,3.2078]
[1740367728774,9.1968433,2745.0,2744.9,0.72853]
[1740367728775,3.2078,2745.0,2744.9,0.72853]
[1740367728969,3.2078,2745.0,2744.9,5.34453]
[1740367729169,3.2078,2745.0,2744.9,9.33487411]
[1740367729370,9.1968433,2745.0,2744.2,20.235]
[1740367729574,5.9890433,2745.0,2744.3,4.61]
[1740367729779,3.2078,2744.7,2744.3,5.33868]
[1740367730074,5.9890433,2745.0,2744.2,20.235]
[1740367730075,3.2078,2744.4,2744.2,20.235]
[1740367730276,5.9890433,2745.0,2744.3,3.2078]
[1740367730476,5.9890433,2745.0,2744.3,4.74087026]
[1740367730774,3.2078,2744.6,2744.3,4.74087026]
[1740367730976,3.2078,2744.6,2744.2,20.235]
[1740367731174,9.1968433,2744.6,2744.2,20.235]
[1740367731677,9.1968433,2744.6,2744.1,0.00546797]
[1740367731678,0.72872,2744.2,2744.1,0.00546797]
[1740367731879,3.2078,2744.3,2743.8,20.218]
[1740367732079,3.2078,2744.0,2743.8,20.218]
[1740367732274,0.7288,2743.9,2743.8,20.218]
[1740367732675,3.2078,2744.0,2743.8,20.218]
[1740367732876,5.9890433,2744.0,2743.8,20.218]
[1740367733179,3.2078,2744.0,2743.8,20.218]
[1740367733772,3.2078,2745.0,2743.9,7.84859031]
[1740367734075,0.72849,2745.1,2744.5,3.2078]
[1740367734277,0.72851,2745.0,2744.6,4.593]
[1740367734482,3.2078,2744.7,2744.0,3.93656]
[1740367734781,3.2078,2744.3,2744.1,4.585]
[1740367734984,3.2078,2744.3,2743.9,4.8215237]
[1740367735185,9.1968433,2744.3,2743.3,20.213]
[1740367735483,3.2078,2744.2,2743.4,7.7888]
[1740367735679,3.93653,2744.2,2743.5,0.72889]
[1740367735875,9.1968433,2744.2,2743.4,7.7888]
[1740367736177,3.2078,2743.9,2743.4,4.581]
[1740367736383,3.2078,2743.9,2743.3,20.213]
[1740367736582,5.9890433,2743.9,2743.6,4.56946797]
[1740367736781,3.2078,2744.2,2743.7,4.83278936]
[1740367737085,3.2078,2743.9,2743.6,0.00546797]
[1740367737479,9.1968433,2743.9,2743.6,0.00546797]
[1740367737684,5.9890433,2743.9,2743.6,0.00546797]
[1740367737884,3.2078,2744.2,2743.6,0.00546797]
[1740367738086,3.2078,2744.2,2743.8,0.72881]
[1740367738384,3.2078,2744.2,2743.7,5.49446572]
[1740367738585,3.2078,2744.2,2743.8,0.72881]
[1740367738781,3.2078,2744.5,2743.7,4.76563572]
[1740367738988,0.72868,2744.4,2743.8,40.8]
[1740367739183,9.1968433,2744.5,2743.7,4.76563572]
[1740367739386,9.1968433,2744.5,2744.0,0.72876]
[1740367739585,3.2078,2744.5,2744.1,4.521]
[1740367739783,3.2078,2744.8,2744.1,9.16709649]
[1740367739983,9.7747433,2745.2,2744.2,0.72872]
[1740367740282,3.2078,2744.9,2744.2,4.76580251]
[1740367740490,3.2078,2744.7,2744.2,4.76580251]
[1740367740688,3.2078,2744.4,2743.7,1.76505957]
[1740367740890,0.72873,2744.2,2744.1,4.5]
[1740367741086,3.2078,2744.2,2744.1,4.5]
[1740367741292,5.9890433,2744.2,2744.1,4.5]
[1740367741786,3.2078,2744.7,2744.1,4.5]
[1740367741992,9.1968433,2744.7,2744.1,9.3231124]
[1740367742392,0.72864,2744.5,2744.1,4.5]
[1740367742588,9.1968433,2744.7,2744.1,4.5]
[1740367742783,9.1968433,2744.7,2744.2,4.75828904]
[1740367742990,0.72861,2744.6,2744.2,4.75828904]
[1740367743291,9.1968433,2744.7,2744.2,4.75828904]
[1740367743690,3.93648,2744.4,2743.7,0.72883]
[1740367743888,0.00642482,2744.1,2743.8,4.452]
[1740367744188,0.73518482,2744.1,2743.9,4.80179516]
[1740367744395,0.73518482,2744.1,2743.8,4.452]
[1740367744599,0.00642482,2744.1,2743.8,4.452]
[1740367744995,9.20326812,2744.1,2743.6,0.00546797]
[1740367745188,0.72885,2743.7,2743.6,0.00546797]
[1740367745389,6.7178933,2743.7,2743.6,0.00546797]
[1740367745591,6.7178933,2743.7,2743.6,7.97e-06]
[1740367745592,9.9256933,2743.7,2743.6,7.97e-06]